fUST/lending_fUST_20240803
["ID","MTS","AMOUNT","RATE_DAILY","PERIOD"]
[333901218,1722614432448,200.0,0.00023371,120]
[333901222,1722614835720,50000.0,0.00025,60]
[333901223,1722614897661,250.0,9.999e-05,2]
[333901224,1722614897842,164.33192775,9.999e-05,2]
[333901225,1722614911863,314.17553325,9.999e-05,2]
[333901226,1722614918732,353.72240741,9.999e-05,2]
[333901227,1722614923689,216.22864078,9.999e-05,2]
[333901228,1722614933674,442.35315002,9.999e-05,2]
[333901229,1722614960323,305.35093676,9.999e-05,2]
[333901230,1722614985004,319.39685728,9.999e-05,2]
[333901231,1722615004874,209.4503555,9.999e-05,2]
[333901232,1722615027828,209.88194006,9.999e-05,2]
[333901323,1722615037923,-300.0,0.00012516,2]
[333901324,1722615037933,-300.0,0.00012516,2]
[333901325,1722615037942,-2818.95412238,0.00012517,2]
[333901328,1722615038670,-366.99479238,0.00012517,2]
[333901330,1722615038695,-265.00443593,0.00012517,2]
[333901346,1722615040251,-21449.04664931,0.00012517,2]
[333901347,1722615040265,-176.752279,0.00012986,2]
[333901348,1722615040274,-183.90364727,0.00013439,2]
[333901349,1722615040284,-4998.1658278,0.00013588,2]
[333901350,1722615040293,-1410.0,0.00013592,2]
[333901351,1722615040303,-1832.52245496,0.00013596,2]
[333901352,1722615040312,-16770.0,0.000136,2]
[333901353,1722615040322,-1832.52245494,0.00013605,2]
[333901354,1722615040332,-1832.52245494,0.00013615,2]
[333901355,1722615040341,-1832.52245494,0.00013624,2]
[333901356,1722615040353,-2000.0,0.00013632,2]
[333901357,1722615040364,-1832.52245494,0.00013633,2]
[333901358,1722615040374,-90720.0895389,0.00013688,2]
[333901359,1722615040386,-4369.69,0.00013696,2]
[333901360,1722615040396,-4369.69,0.00013697,2]
[333901361,1722615040406,-500.0,0.00013698,2]
[333901362,1722615040416,-500.0,0.00013698,2]
[333901363,1722615040426,-500.0,0.00013698,2]
[333901364,1722615040436,-500.0,0.00013698,2]
[333901365,1722615040447,-500.0,0.00013698,2]
[333901366,1722615040457,-500.0,0.00013698,2]
[333901367,1722615040468,-500.0,0.00013698,2]
[333901368,1722615040478,-303.47362636,0.00013698,2]
[333901369,1722615040488,-500.0,0.00013698,2]
[333901370,1722615040499,-500.0,0.00013698,2]
[333901371,1722615040510,-500.0,0.00013698,2]
[333901372,1722615040519,-500.0,0.00013698,2]
[333901373,1722615040530,-413.45485945,0.00013698,2]
[333901374,1722615040539,-500.00000002,0.00013698,2]
[333901375,1722615040549,-500.0,0.00013698,2]
[333901376,1722615040558,-500.0,0.00013698,2]
[333901377,1722615040569,-561.44881227,0.00013698,2]
[333901378,1722615040580,-500.0,0.00013698,2]
[333901379,1722615040590,-500.0,0.00013698,2]
[333901380,1722615040600,-500.0,0.00013698,2]
[333901381,1722615040609,-500.0,0.00013698,2]
[333901382,1722615040618,-500.0,0.00013698,2]
[333901383,1722615040628,-500.0,0.00013698,2]
[333901384,1722615040640,-500.0,0.00013698,2]
[333901386,1722615040650,-500.0,0.00013698,2]
[333901388,1722615040659,-509.09073126,0.00013698,2]
[333901390,1722615040669,-500.0,0.00013698,2]
[333901392,1722615040679,-500.0,0.00013698,2]
[333901393,1722615040688,-597.72529334,0.00013698,2]
[333901395,1722615040698,-500.0,0.00013698,2]
[333901397,1722615040708,-500.0,0.00013698,2]
[333901399,1722615040717,-500.0,0.00013698,2]
[333901401,1722615040727,-500.0,0.00013698,2]
[333901403,1722615040738,-500.0,0.00013698,2]
[333901405,1722615040747,-500.0,0.00013698,2]
[333901407,1722615040760,-500.98111871,0.00013698,2]
[333901409,1722615040769,-500.0,0.00013698,2]
[333901411,1722615040779,-500.0,0.00013698,2]
[333901412,1722615040789,-501.24379968,0.00013698,2]
[333901414,1722615040798,-542.32195044,0.00013698,2]
[333901416,1722615040807,-500.0,0.00013698,2]
[333901417,1722615040817,-500.0,0.00013698,2]
[333901418,1722615040827,-500.0,0.00013698,2]
[333901419,1722615040836,-500.0,0.00013698,2]
[333901420,1722615040846,-500.0,0.00013698,2]
[333901422,1722615040856,-500.0,0.00013698,2]
[333901424,1722615040865,-502.40693595,0.00013698,2]
[333901426,1722615040875,-500.0,0.00013698,2]
[333901427,1722615040885,-500.0,0.00013698,2]
[333901428,1722615040894,-522.5118749,0.00013698,2]
[333901430,1722615040903,-500.0,0.00013698,2]
[333901432,1722615040914,-500.6897106,0.00013698,2]
[333901434,1722615040923,-500.0,0.00013698,2]
[333901436,1722615040934,-502.12221661,0.00013698,2]
[333901438,1722615040945,-502.06925966,0.00013698,2]
[333901440,1722615040956,-500.0,0.00013698,2]
[333901441,1722615040967,-500.0,0.00013698,2]
[333901443,1722615040978,-589.27225083,0.00013698,2]
[333901445,1722615040988,-500.0,0.00013698,2]
[333901447,1722615040998,-500.0,0.00013698,2]
[333901448,1722615041010,-500.0,0.00013698,2]
[333901450,1722615041021,-500.0,0.00013698,2]
[333901452,1722615041031,-507.8646031,0.00013698,2]
[333901454,1722615041042,-500.0,0.00013698,2]
[333901455,1722615041052,-505.63386954,0.00013698,2]
[333901457,1722615041061,-343.47273708,0.00013698,2]
[333901458,1722615041071,-500.0,0.00013698,2]
[333901459,1722615041080,-552.33633417,0.00013698,2]
[333901460,1722615041089,-375.89863565,0.00013698,2]
[333901461,1722615041098,-500.0,0.00013698,2]
[333901462,1722615041108,-882.6,0.00013698,2]
[333901463,1722615041117,-500.0,0.00013698,2]
[333901464,1722615041127,-500.0,0.00013698,2]
[333901465,1722615041136,-500.0,0.00013698,2]
[333901466,1722615041146,-500.0,0.00013698,2]
[333901467,1722615041155,-500.0,0.00013698,2]
[333901468,1722615041164,-500.0,0.00013698,2]
[333901469,1722615041175,-500.0,0.00013698,2]
[333901470,1722615041186,-500.0,0.00013698,2]
[333901471,1722615041196,-500.0,0.00013698,2]
[333901472,1722615041205,-500.0,0.00013698,2]
[333901473,1722615041214,-268.55025728,0.00013698,2]
[333901474,1722615041224,-500.0,0.00013698,2]
[333901475,1722615041234,-500.0,0.00013698,2]
[333901476,1722615041244,-500.0,0.00013698,2]
[333901477,1722615041253,-504.19979343,0.00013698,2]
[333901478,1722615041268,-500.0,0.00013698,2]
[333901479,1722615041282,-500.0,0.00013698,2]
[333901480,1722615041291,-500.0,0.00013698,2]
[333901481,1722615041301,-500.0,0.00013698,2]
[333901482,1722615041310,-501.80301251,0.00013698,2]
[333901483,1722615041321,-500.0,0.00013698,2]
[333901484,1722615041332,-500.0,0.00013698,2]
[333901485,1722615041342,-500.0,0.00013698,2]
[333901486,1722615041352,-500.0,0.00013698,2]
[333901487,1722615041362,-501.58533449,0.00013698,2]
[333901488,1722615041373,-500.0,0.00013698,2]
[333901489,1722615041384,-500.0,0.00013698,2]
[333901490,1722615041395,-500.0,0.00013698,2]
[333901491,1722615041405,-500.0,0.00013698,2]
[333901492,1722615041415,-501.15327667,0.00013698,2]
[333901493,1722615041426,-500.0,0.00013698,2]
[333901494,1722615041436,-500.0,0.00013698,2]
[333901495,1722615041448,-545.70137269,0.00013698,2]
[333901496,1722615041457,-389.54919772,0.00013698,2]
[333901497,1722615041468,-500.0,0.00013698,2]
[333901498,1722615041478,-500.0,0.00013698,2]
[333901499,1722615041489,-500.0,0.00013698,2]
[333901500,1722615041501,-500.0,0.00013698,2]
[333901501,1722615041512,-500.0,0.00013698,2]
[333901502,1722615041521,-500.0,0.00013698,2]
[333901503,1722615041530,-219.26218121,0.00013698,2]
[333901504,1722615041540,-500.0,0.00013698,2]
[333901505,1722615041550,-534.1570803,0.00013698,2]
[333901506,1722615041559,-500.0,0.00013698,2]
[333901507,1722615041569,-500.0,0.00013698,2]
[333901508,1722615041579,-500.0,0.00013698,2]
[333901509,1722615041588,-500.0,0.00013698,2]
[333901510,1722615041598,-863.19,0.00013698,2]
[333901511,1722615041609,-500.0,0.00013698,2]
[333901512,1722615041619,-500.0,0.00013698,2]
[333901513,1722615041629,-206.42538066,0.00013698,2]
[333901514,1722615041639,-500.0,0.00013698,2]
[333901515,1722615041649,-500.0,0.00013698,2]
[333901516,1722615041659,-500.0,0.00013698,2]
[333901517,1722615041668,-500.0,0.00013698,2]
[333901518,1722615041679,-500.0,0.00013698,2]
[333901519,1722615041689,-506.37693794,0.00013698,2]
[333901520,1722615041698,-500.0,0.00013698,2]
[333901521,1722615041708,-500.0,0.00013698,2]
[333901522,1722615041718,-500.0,0.00013698,2]
[333901523,1722615041727,-500.0,0.00013698,2]
[333901524,1722615041737,-500.0,0.00013698,2]
[333901525,1722615041747,-500.0,0.00013698,2]
[333901526,1722615041756,-500.0,0.00013698,2]
[333901527,1722615041770,-500.0,0.00013698,2]
[333901528,1722615041779,-210.57143812,0.00013698,2]
[333901529,1722615041790,-500.0,0.00013698,2]
[333901530,1722615041801,-500.0,0.00013698,2]
[333901531,1722615041811,-503.02090261,0.00013698,2]
[333901532,1722615041821,-464.90049769,0.00013698,2]
[333901533,1722615041831,-500.0,0.00013698,2]
[333901534,1722615041841,-500.0,0.00013698,2]
[333901535,1722615041852,-500.0,0.00013698,2]
[333901536,1722615041862,-508.66921285,0.00013698,2]
[333901537,1722615041872,-500.0,0.00013698,2]
[333901538,1722615041884,-500.0,0.00013698,2]
[333901539,1722615041894,-500.0,0.00013698,2]
[333901540,1722615041905,-500.0,0.00013698,2]
[333901541,1722615041915,-500.0,0.00013698,2]
[333901542,1722615041925,-500.0,0.00013698,2]
[333901543,1722615041936,-3579.3,0.00013698,2]
[333901544,1722615041946,-515.95362371,0.00013698,2]
[333901545,1722615041955,-500.0,0.00013698,2]
[333901546,1722615041966,-500.0,0.00013698,2]
[333901547,1722615041977,-500.0,0.00013698,2]
[333901548,1722615041987,-500.0,0.00013698,2]
[333901549,1722615041996,-500.0,0.00013698,2]
[333901550,1722615042005,-500.0,0.00013698,2]
[333901551,1722615042022,-1684.3,0.00013698,2]
[333901552,1722615042034,-500.0,0.00013698,2]
[333901553,1722615042043,-1423.25,0.00013698,2]
[333901554,1722615042052,-500.0,0.00013698,2]
[333901555,1722615042061,-430.85125548,0.00013698,2]
[333901556,1722615042076,-70.18784117,0.00013698,2]
[333901557,1722615042087,-527.97,0.00013698,2]
[333901558,1722615042097,-500.0,0.00013698,2]
[333901559,1722615042106,-500.0,0.00013698,2]
[333901560,1722615042116,-286.87128719,0.00013698,2]
[333901561,1722615042127,-500.0,0.00013698,2]
[333901562,1722615042137,-500.0,0.00013698,2]
[333901563,1722615042147,-500.0,0.00013698,2]
[333901564,1722615042157,-468.82106083,0.00013698,2]
[333901602,1722615042978,-31.17893917,0.00013698,2]
[333901604,1722615042988,-278.19105151,0.00013698,2]
[333901609,1722615043048,-221.80894849,0.00013698,2]
[333901610,1722615043057,-500.0,0.00013698,2]
[333901611,1722615043067,-500.0,0.00013698,2]
[333901612,1722615043077,-285.09618884,0.00013698,2]
[333901722,1722615046298,-214.90381116,0.00013698,2]
[333901723,1722615046307,-500.0,0.00013698,2]
[333901724,1722615046317,-500.0,0.00013698,2]
[333901725,1722615046327,-500.0,0.00013698,2]
[333901726,1722615046336,-500.0,0.00013698,2]
[333901727,1722615046345,-500.0,0.00013698,2]
[333901728,1722615046355,-500.0,0.00013698,2]
[333901729,1722615046364,-500.0,0.00013698,2]
[333901730,1722615046374,-500.0,0.00013698,2]
[333901732,1722615046384,-831.69,0.00013698,2]
[333901734,1722615046393,-1354.55,0.00013698,2]
[333901736,1722615046403,-500.0,0.00013698,2]
[333901738,1722615046412,-704.27,0.00013698,2]
[333901740,1722615046422,-500.0,0.00013698,2]
[333901742,1722615046431,-500.0,0.00013698,2]
[333901744,1722615046442,-500.0,0.00013698,2]
[333901745,1722615046452,-500.0,0.00013698,2]
[333901746,1722615046462,-500.0,0.00013698,2]
[333901747,1722615046471,-500.0,0.00013698,2]
[333901749,1722615046481,-500.0,0.00013698,2]
[333901751,1722615046491,-500.0,0.00013698,2]
[333901753,1722615046500,-526.0,0.00013698,2]
[333901755,1722615046512,-2114.84,0.00013698,2]
[333901757,1722615046521,-810.11,0.00013698,2]
[333901758,1722615046530,-500.0,0.00013698,2]
[333901760,1722615046540,-500.0,0.00013698,2]
[333901762,1722615046549,-500.0,0.00013698,2]
[333901764,1722615046557,-500.0,0.00013698,2]
[333901765,1722615046566,-500.0,0.00013698,2]
[333901766,1722615046575,-500.0,0.00013698,2]
[333901767,1722615046585,-500.0,0.00013698,2]
[333901768,1722615046594,-500.0,0.00013698,2]
[333901769,1722615046604,-500.0,0.00013698,2]
[333901771,1722615046614,-2767.67,0.00013698,2]
[333901773,1722615046623,-500.0,0.00013698,2]
[333901774,1722615046633,-529.81,0.00013698,2]
[333901775,1722615046642,-500.0,0.00013698,2]
[333901777,1722615046652,-500.0,0.00013698,2]
[333901779,1722615046662,-519.73,0.00013698,2]
[333901780,1722615046672,-500.0,0.00013698,2]
[333901782,1722615046681,-502.78378867,0.00013698,2]
[333901784,1722615046691,-500.0,0.00013698,2]
[333901785,1722615046700,-471.75702461,0.00013698,2]
[333901787,1722615046710,-500.0,0.00013698,2]
[333901789,1722615046719,-500.0,0.00013698,2]
[333901790,1722615046729,-500.0,0.00013698,2]
[333901792,1722615046739,-500.0,0.00013698,2]
[333901794,1722615046749,-500.0,0.00013698,2]
[333901795,1722615046758,-500.0,0.00013698,2]
[333901796,1722615046773,-500.0,0.00013698,2]
[333901797,1722615046782,-500.0,0.00013698,2]
[333901798,1722615046793,-500.0,0.00013698,2]
[333901799,1722615046803,-500.0,0.00013698,2]
[333901800,1722615046813,-500.0,0.00013698,2]
[333901801,1722615046823,-752.75,0.00013698,2]
[333901802,1722615046832,-500.0,0.00013698,2]
[333901803,1722615046842,-500.0,0.00013698,2]
[333901804,1722615046852,-500.0,0.00013698,2]
[333901805,1722615046861,-500.0,0.00013698,2]
[333901806,1722615046871,-500.0,0.00013698,2]
[333901807,1722615046881,-500.0,0.00013698,2]
[333901808,1722615046890,-500.0,0.00013698,2]
[333901809,1722615046900,-500.0,0.00013698,2]
[333901810,1722615046910,-500.0,0.00013698,2]
[333901811,1722615046921,-1854.61987974,0.00013722,2]
[333901812,1722615046930,-151.0,0.00013722,2]
[333901813,1722615046941,-151.0,0.00013722,2]
[333901814,1722615046952,-151.0,0.00013722,2]
[333901815,1722615046963,-45360.0447695,0.00013722,2]
[333901816,1722615046972,-34605.84781149,0.00013722,5]
[333901817,1722615046982,-90720.0895389,0.00013723,2]
[333901818,1722615046992,-436.53890694,0.00013732,2]
[333901819,1722615047001,-177.40090561,0.00013732,2]
[333901820,1722615047015,-500.0,0.00013732,2]
[333901821,1722615047025,-500.0,0.00013732,2]
[333901822,1722615047034,-500.0,0.00013732,2]
[333901823,1722615047044,-500.0,0.00013732,2]
[333901824,1722615047053,-500.0,0.00013732,2]
[333901825,1722615047062,-500.0,0.00013732,2]
[333901826,1722615047072,-500.0,0.00013732,2]
[333901827,1722615047081,-500.0,0.00013732,2]
[333901828,1722615047091,-500.0,0.00013732,2]
[333901829,1722615047102,-500.0,0.00013732,2]
[333901830,1722615047111,-500.0,0.00013732,2]
[333901831,1722615047121,-500.0,0.00013732,2]
[333901832,1722615047131,-30035.33209153,0.00013732,5]
[333901833,1722615047140,-88888.0,0.00013733,2]
[333901834,1722615047150,-151.0,0.00013733,2]
[333901835,1722615047159,-151.0,0.00013733,2]
[333901836,1722615047169,-151.0,0.00013733,2]
[333901837,1722615047184,-151.0,0.00013733,2]
[333901838,1722615047194,-151.0,0.00013733,2]
[333901839,1722615047203,-151.0,0.00013733,2]
[333901840,1722615047214,-151.0,0.00013733,2]
[333901841,1722615047224,-151.0,0.00013733,2]
[333901842,1722615047234,-151.0,0.00013733,2]
[333901843,1722615047244,-151.0,0.00013733,2]
[333901844,1722615047254,-151.0,0.00013733,2]
[333901845,1722615047273,-265.208928,0.00013733,2]
[333901846,1722615047283,-151.0,0.00013733,2]
[333901847,1722615047294,-265.208928,0.00013733,2]
[333901848,1722615047304,-278.127235,0.00013733,2]
[333901849,1722615047314,-278.127235,0.00013733,2]
[333901850,1722615047324,-151.0,0.00013733,2]
[333901851,1722615047333,-151.0,0.00013733,2]
[333901852,1722615047343,-151.0,0.00013733,2]
[333901853,1722615047352,-151.0,0.00013733,2]
[333901854,1722615047363,-151.0,0.00013733,2]
[333901855,1722615047373,-151.0,0.00013733,2]
[333901856,1722615047383,-151.0,0.00013733,2]
[333901857,1722615047393,-420.0,0.00013733,2]
[333901858,1722615047403,-151.0,0.00013733,2]
[333901859,1722615047412,-420.0,0.00013768,2]
[333901860,1722615047422,-150.112233,0.000138,2]
[333901861,1722615047431,-45360.0447695,0.00013821,2]
[333901862,1722615047441,-151.0,0.00013822,2]
[333901863,1722615047451,-151.0,0.00013822,2]
[333901864,1722615047461,-151.0,0.00013822,2]
[333901865,1722615047470,-151.0,0.00013822,2]
[333901866,1722615047480,-4369.69,0.00013822,2]
[333901867,1722615047490,-4369.69,0.00013822,2]
[333901868,1722615047499,-151.0,0.00013831,2]
[333901869,1722615047509,-151.0,0.00013831,2]
[333901870,1722615047522,-151.0,0.00013831,2]
[333901871,1722615047532,-151.0,0.00013831,2]
[333901872,1722615047541,-151.0,0.00013831,2]
[333901873,1722615047551,-151.0,0.00013831,2]
[333901874,1722615047560,-45360.0447695,0.00013832,2]
[333901875,1722615047569,-151.0,0.00013832,2]
[333901876,1722615047578,-151.0,0.00013832,2]
[333901877,1722615047587,-151.0,0.00013832,2]
[333901878,1722615047596,-151.0,0.00013832,2]
[333901879,1722615047605,-4369.69,0.00013832,2]
[333901880,1722615047614,-4369.69,0.00013832,2]
[333901881,1722615047626,-151.0,0.00013832,2]
[333901882,1722615047635,-151.0,0.00013832,2]
[333901883,1722615047645,-151.0,0.00013832,2]
[333901884,1722615047654,-151.0,0.00013832,2]
[333901885,1722615047663,-151.0,0.00013832,2]
[333901886,1722615047673,-151.0,0.00013832,2]
[333901887,1722615047683,-265.208928,0.00013832,2]
[333901888,1722615047693,-151.0,0.00013832,2]
[333901889,1722615047703,-265.208928,0.00013832,2]
[333901890,1722615047713,-278.127235,0.00013832,2]
[333901891,1722615047723,-278.127235,0.00013832,2]
[333901892,1722615047733,-151.0,0.00013832,2]
[333901893,1722615047744,-151.0,0.00013833,2]
[333901894,1722615047754,-151.0,0.00013833,2]
[333901895,1722615047767,-151.0,0.00013833,2]
[333901896,1722615047776,-151.0,0.00013833,2]
[333901897,1722615047786,-151.0,0.00013842,2]
[333901898,1722615047795,-151.0,0.00013842,2]
[333901899,1722615047805,-151.0,0.00013842,2]
[333901900,1722615047813,-151.0,0.00013842,2]
[333901901,1722615047823,-4369.69,0.00013842,2]
[333901902,1722615047833,-4369.69,0.00013842,2]
[333901903,1722615047843,-265.208928,0.00013842,2]
[333901904,1722615047852,-151.0,0.00013842,2]
[333901905,1722615047863,-265.208928,0.00013842,2]
[333901906,1722615047873,-278.127235,0.00013842,2]
[333901907,1722615047883,-278.127235,0.00013842,2]
[333901908,1722615047892,-151.0,0.00013843,2]
[333901909,1722615047902,-151.0,0.00013843,2]
[333901910,1722615047912,-151.355207,0.00013843,2]
[333901911,1722615047922,-151.0,0.00013843,2]
[333901912,1722615047931,-151.0,0.00013843,2]
[333901913,1722615047940,-308.404658,0.00013843,2]
[333901914,1722615047950,-151.0,0.00013843,2]
[333901915,1722615047960,-4369.69,0.00013852,2]
[333901916,1722615047971,-4369.69,0.00013852,2]
[333901917,1722615047981,-4369.69,0.00013852,2]
[333901918,1722615047992,-151.0,0.00013852,2]
[333901919,1722615048003,-151.0,0.00013852,2]
[333901920,1722615048018,-175.474858,0.00013852,2]
[333901921,1722615048029,-151.0,0.00013852,2]
[333901922,1722615048038,-151.0,0.00013852,2]
[333901923,1722615048048,-151.0,0.00013853,2]
[333901924,1722615048057,-151.0,0.00013853,2]
[333901925,1722615048070,-151.0,0.00013941,2]
[333901926,1722615048081,-151.0,0.00013941,2]
[333901927,1722615048092,-151.0,0.00013941,2]
[333901928,1722615048102,-151.0,0.00013941,2]
[333901929,1722615048112,-277.685096,0.00013941,2]
[333901930,1722615048123,-151.0,0.00013941,2]
[333901931,1722615048132,-151.0,0.00013941,2]
[333901932,1722615048143,-151.0,0.00013941,2]
[333901933,1722615048153,-153.0,0.00013945,2]
[333901934,1722615048163,-4369.69,0.0001395,2]
[333901935,1722615048174,-265.208928,0.0001395,2]
[333901936,1722615048185,-151.0,0.0001395,2]
[333901937,1722615048199,-265.208928,0.0001395,2]
[333901938,1722615048208,-278.127235,0.0001395,2]
[333901939,1722615048218,-278.127235,0.0001395,2]
[333901940,1722615048228,-152.741646,0.00013951,2]
[333901941,1722615048239,-4369.69,0.00013951,2]
[333901942,1722615048249,-151.0,0.00013952,2]
[333901943,1722615048259,-151.0,0.00013952,2]
[333901944,1722615048275,-308.404658,0.00013952,2]
[333901945,1722615048285,-151.0,0.00013952,2]
[333901946,1722615048295,-620.49326275,0.00013958,2]
[333901947,1722615048305,-4369.69,0.00013961,2]
[333901948,1722615048315,-4369.69,0.00013961,2]
[333901949,1722615048325,-4369.69,0.00013961,2]
[333901950,1722615048335,-151.0,0.00013961,2]
[333901951,1722615048345,-151.0,0.00013961,2]
[333901952,1722615048355,-150.0,0.00013961,2]
[333901953,1722615048366,-506.0,0.00013961,2]
[333901954,1722615048376,-151.0,0.00013971,2]
[333901955,1722615048385,-151.0,0.00013971,2]
[333901956,1722615048395,-164.76606,0.00013971,2]
[333901957,1722615048405,-151.0,0.00013971,2]
[333901958,1722615048414,-4369.69,0.00013971,2]
[333901959,1722615048516,-151.0,0.00013971,2]
[333901960,1722615048527,-151.0,0.00013971,2]
[333901961,1722615048537,-151.0,0.00013971,2]
[333901962,1722615048547,-500.0,0.00013972,2]
[333901963,1722615048558,-500.0,0.00013972,2]
[333901964,1722615048568,-500.0,0.00013972,2]
[333901965,1722615048579,-500.0,0.00013972,2]
[333901966,1722615048589,-500.0,0.00013972,2]
[333901967,1722615048599,-500.0,0.00013972,2]
[333901968,1722615048609,-500.0,0.00013972,2]
[333901969,1722615048619,-500.0,0.00013972,2]
[333901970,1722615048628,-500.0,0.00013972,2]
[333901971,1722615048638,-500.0,0.00013972,2]
[333901972,1722615048648,-504.15839668,0.00013972,2]
[333901973,1722615048658,-500.0,0.00013972,2]
[333901974,1722615048667,-500.0,0.00013972,2]
[333901975,1722615048678,-500.0,0.00013972,2]
[333901976,1722615048688,-500.0,0.00013972,2]
[333901977,1722615048698,-500.0,0.00013972,2]
[333901978,1722615048708,-500.0,0.00013972,2]
[333901979,1722615048717,-500.0,0.00013972,2]
[333901980,1722615048727,-882.6,0.00013972,2]
[333901981,1722615048736,-500.0,0.00013972,2]
[333901982,1722615048747,-500.0,0.00013972,2]
[333901983,1722615048756,-500.0,0.00013972,2]
[333901984,1722615048776,-151.0,0.00013972,2]
[333901985,1722615048785,-500.0,0.00013972,2]
[333901986,1722615048794,-501.26094702,0.00013972,2]
[333901987,1722615048803,-500.0,0.00013972,2]
[333901988,1722615048813,-500.0,0.00013972,2]
[333901989,1722615048822,-500.0,0.00013972,2]
[333901990,1722615048831,-502.11722382,0.00013972,2]
[333901991,1722615048841,-152.274227,0.00013972,2]
[333901992,1722615048851,-308.404658,0.00013972,2]
[333901993,1722615048861,-500.0,0.00013972,2]
[333901994,1722615048871,-500.0,0.00013972,2]
[333901995,1722615048881,-500.0,0.00013972,2]
[333901996,1722615048892,-500.0,0.00013972,2]
[333901997,1722615048902,-500.0,0.00013972,2]
[333901998,1722615048913,-500.0,0.00013972,2]
[333901999,1722615048923,-500.0,0.00013972,2]
[333902000,1722615048934,-863.19,0.00013972,2]
[333902001,1722615048944,-500.0,0.00013972,2]
[333902002,1722615048954,-500.0,0.00013972,2]
[333902003,1722615048963,-151.0,0.00013972,2]
[333902004,1722615048974,-500.0,0.00013972,2]
[333902005,1722615048983,-500.0,0.00013972,2]
[333902006,1722615048993,-500.0,0.00013972,2]
[333902007,1722615049003,-500.0,0.00013972,2]
[333902008,1722615049018,-500.0,0.00013972,2]
[333902009,1722615049028,-187.80600871,0.00013972,2]
[333902010,1722615049037,-402.84769616,0.00013972,2]
[333902011,1722615049047,-500.0,0.00013972,2]
[333902012,1722615049057,-500.0,0.00013972,2]
[333902013,1722615049067,-3579.3,0.00013972,2]
[333902014,1722615049077,-500.0,0.00013972,2]
[333902015,1722615049087,-511.96058114,0.00013972,2]
[333902016,1722615049097,-500.0,0.00013972,2]
[333902017,1722615049108,-500.0,0.00013972,2]
[333902018,1722615049117,-500.0,0.00013972,2]
[333902019,1722615049127,-1684.3,0.00013972,2]
[333902020,1722615049137,-1423.25,0.00013972,2]
[333902021,1722615049148,-500.0,0.00013972,2]
[333902022,1722615049158,-527.97,0.00013972,2]
[333902023,1722615049168,-500.0,0.00013972,2]
[333902024,1722615049179,-484.60595703,0.00013972,2]
[333902025,1722615049190,-500.0,0.00013972,2]
[333902026,1722615049202,-500.0,0.00013972,2]
[333902027,1722615049212,-500.0,0.00013972,2]
[333902028,1722615049222,-500.0,0.00013972,2]
[333902029,1722615049232,-500.0,0.00013972,2]
[333902030,1722615049242,-500.0,0.00013972,2]
[333902031,1722615049254,-500.0,0.00013972,2]
[333902032,1722615049266,-500.0,0.00013972,2]
[333902033,1722615049277,-500.0,0.00013972,2]
[333902034,1722615049288,-831.69,0.00013972,2]
[333902035,1722615049298,-1354.55,0.00013972,2]